fUSD/lending_fUSD_20250209
["ID","MTS","AMOUNT","RATE_DAILY","PERIOD"]
[352421650,1739093442787,-500.0,0.00010675,2]
[352421651,1739093442797,-769.49,0.00010675,2]
[352421652,1739093442806,-619.63,0.00010675,2]
[352421653,1739093442815,-693.66,0.00010675,2]
[352421654,1739093442825,-629.58,0.00010675,2]
[352421655,1739093442834,-823.3,0.00010675,2]
[352421656,1739093442843,-821.47,0.00010675,2]
[352421657,1739093442852,-500.0,0.00010675,2]
[352421658,1739093442861,-708.97,0.00010675,2]
[352421659,1739093442871,-757.96,0.00010675,2]
[352421660,1739093442880,-1087.29,0.00010675,2]
[352421661,1739093442890,-500.0,0.00010675,2]
[352421662,1739093442899,-1753.75,0.00010675,2]
[352421663,1739093442908,-1730.61,0.00010675,2]
[352421664,1739093442919,-500.0,0.00010675,2]
[352421665,1739093442928,-848.88,0.00010675,2]
[352421666,1739093442937,-1029.87,0.00010675,2]
[352421667,1739093442946,-547.81,0.00010675,2]
[352421668,1739093442955,-764.93,0.00010675,2]
[352421669,1739093442964,-783.68,0.00010675,2]
[352421670,1739093442973,-1197.8,0.00010675,2]
[352421671,1739093442982,-633.47,0.00010675,2]
[352421672,1739093442991,-1331.84,0.00010675,2]
[352421673,1739093443000,-585.06,0.00010675,2]
[352421674,1739093443010,-500.0,0.00010675,2]
[352421675,1739093443018,-918.48,0.00010675,2]
[352421676,1739093443027,-797.81,0.00010675,2]
[352421677,1739093443036,-500.0,0.00010675,2]
[352421678,1739093443047,-1135.51,0.00010675,2]
[352421679,1739093443055,-500.0,0.00010675,2]
[352421680,1739093443068,-1781.88,0.00010675,2]
[352421681,1739093443083,-1130.28,0.00010675,2]
[352421683,1739093443093,-500.0,0.00010675,2]
[352421684,1739093443102,-2486.97,0.00010675,2]
[352421686,1739093443113,-1439.82,0.00010675,2]
[352421687,1739093443122,-1176.89,0.00010675,2]
[352421688,1739093443131,-1603.9,0.00010675,2]
[352421689,1739093443140,-1308.98,0.00010675,2]
[352421690,1739093443152,-1740.19,0.00010675,2]
[352421691,1739093443162,-809.09,0.00010675,2]
[352421693,1739093443171,-540.18,0.00010675,2]
[352421694,1739093443179,-503.14,0.00010675,2]
[352421696,1739093443191,-3818.74,0.00010675,2]
[352421698,1739093443201,-744.75,0.00010675,2]
[352421699,1739093443211,-950.81,0.00010675,2]
[352421700,1739093443220,-500.0,0.00010675,2]
[352421701,1739093443230,-500.0,0.00010675,2]
[352421702,1739093443243,-1366.19,0.00010675,2]
[352421703,1739093443252,-899.22,0.00010675,2]
[352421704,1739093443261,-1133.86,0.00010675,2]
[352421705,1739093443270,-675.02,0.00010675,2]
[352421706,1739093443279,-622.79,0.00010675,2]
[352421707,1739093443289,-500.0,0.00010675,2]
[352421708,1739093443299,-666.01,0.00010675,2]
[352421709,1739093443308,-1003.73,0.00010675,2]
[352421710,1739093443318,-1173.28,0.00010675,2]
[352421711,1739093443327,-2140.7,0.00010675,2]
[352421712,1739093443336,-500.0,0.00010675,2]
[352421713,1739093443345,-804.39,0.00010675,2]
[352421714,1739093443354,-699.86,0.00010675,2]
[352421715,1739093443363,-1038.03,0.00010675,2]
[352421716,1739093443373,-1534.57,0.00010675,2]
[352421717,1739093443383,-1789.5,0.00010675,2]
[352421718,1739093443392,-739.77,0.00010675,2]
[352421719,1739093443401,-2875.24,0.00010675,2]
[352421720,1739093443410,-1312.87,0.00010675,2]
[352421721,1739093443419,-1362.18,0.00010675,2]
[352421722,1739093443427,-1008.52,0.00010675,2]
[352421723,1739093443437,-500.0,0.00010675,2]
[352421724,1739093443446,-1651.8,0.00010675,2]
[352421725,1739093443454,-500.0,0.00010675,2]
[352421726,1739093443463,-532.11,0.00010675,2]
[352421727,1739093443473,-1345.09,0.00010675,2]
[352421728,1739093443481,-1772.27,0.00010675,2]
[352421729,1739093443490,-1375.84,0.00010675,2]
[352421730,1739093443499,-1273.43,0.00010675,2]
[352421731,1739093443508,-500.0,0.00010675,2]
[352421732,1739093443517,-906.11,0.00010675,2]
[352421733,1739093443526,-500.0,0.00010675,2]
[352421734,1739093443534,-1298.96,0.00010675,2]
[352421735,1739093443544,-1374.21,0.00010675,2]
[352421736,1739093443553,-822.1,0.00010675,2]
[352421737,1739093443562,-578.75,0.00010675,2]
[352421738,1739093443571,-500.0,0.00010675,2]
[352421739,1739093443581,-1313.23,0.00010675,2]
[352421740,1739093443589,-544.38,0.00010675,2]
[352421741,1739093443599,-1324.54,0.00010675,2]
[352421742,1739093443608,-500.0,0.00010675,2]
[352421743,1739093443617,-1005.87,0.00010675,2]
[352421744,1739093443626,-1381.83,0.00010675,2]
[352421745,1739093443635,-1250.43,0.00010675,2]
[352421746,1739093443644,-514.48,0.00010675,2]
[352421747,1739093443653,-500.0,0.00010675,2]
[352421748,1739093443663,-963.73,0.00010675,2]
[352421749,1739093443672,-911.74,0.00010675,2]
[352421750,1739093443681,-1092.4,0.00010675,2]
[352421751,1739093443689,-500.0,0.00010675,2]
[352421752,1739093443699,-940.48,0.00010675,2]
[352421753,1739093443708,-500.0,0.00010675,2]
[352421754,1739093443717,-953.19,0.00010675,2]
[352421755,1739093443726,-500.0,0.00010675,2]
[352421756,1739093443735,-500.0,0.00010675,2]
[352421757,1739093443744,-917.38,0.00010675,2]
[352421758,1739093443753,-872.02,0.00010675,2]
[352421759,1739093443763,-540.05,0.00010675,2]
[352421760,1739093443773,-741.57,0.00010675,2]
[352421761,1739093443782,-500.0,0.00010675,2]
[352421762,1739093443790,-995.48,0.00010675,2]
[352421763,1739093443799,-500.0,0.00010675,2]
[352421764,1739093443809,-1374.19,0.00010675,2]
[352421765,1739093443818,-944.21,0.00010675,2]
[352421766,1739093443826,-500.0,0.00010675,2]
[352421767,1739093443835,-1806.32,0.00010675,2]
[352421768,1739093443845,-500.0,0.00010675,2]
[352421769,1739093443854,-500.0,0.00010675,2]
[352421770,1739093443863,-945.42,0.00010675,2]
[352421771,1739093443873,-500.0,0.00010676,2]
[352421772,1739093443883,-500.0,0.00010676,2]
[352421773,1739093443892,-500.0,0.00010676,2]
[352421774,1739093443901,-629.1,0.00010676,2]
[352421775,1739093443910,-500.0,0.00010676,2]
[352421776,1739093443919,-500.0,0.00010676,2]
[352421777,1739093443930,-500.0,0.00010676,2]
[352421778,1739093443940,-500.0,0.00010676,2]
[352421779,1739093443949,-500.0,0.00010676,2]
[352421780,1739093443958,-500.0,0.00010676,2]
[352421781,1739093443967,-500.0,0.00010676,2]
[352421782,1739093443976,-500.0,0.00010676,2]
[352421783,1739093443985,-500.0,0.00010676,2]
[352421784,1739093443994,-500.0,0.00010676,2]
[352421785,1739093444003,-611.91,0.00010676,2]
[352421786,1739093444013,-620.01,0.00010676,2]
[352421787,1739093444022,-466.56,0.00010676,2]
[352421788,1739093444033,-192.96,0.00010676,2]
[352421789,1739093444042,-282.51,0.00010676,2]
[352421790,1739093444051,-500.0,0.00010676,2]
[352421791,1739093444061,-500.0,0.00010676,2]
[352421792,1739093444070,-635.08,0.00010676,2]
[352421793,1739093444079,-500.0,0.00010676,2]
[352421794,1739093444089,-500.0,0.00010676,2]
[352421795,1739093444098,-500.0,0.00010676,2]
[352421796,1739093444109,-500.0,0.00010676,2]
[352421797,1739093444119,-500.0,0.00010676,2]
[352421798,1739093444128,-500.0,0.00010676,2]
[352421799,1739093444137,-500.0,0.00010676,2]
[352421800,1739093444146,-500.0,0.00010676,2]
[352421801,1739093444156,-500.0,0.00010676,2]
[352421802,1739093444165,-500.0,0.00010676,2]
[352421803,1739093444174,-371.94332895,0.00010676,2]
[352421804,1739093444183,-500.0,0.00010676,2]
[352421805,1739093444192,-500.0,0.00010676,2]
[352421806,1739093444201,-500.0,0.00010676,2]
[352421807,1739093444210,-500.0,0.00010676,2]
[352421808,1739093444219,-500.0,0.00010676,2]
[352421809,1739093444227,-500.0,0.00010676,2]
[352421810,1739093444236,-631.16,0.00010676,2]
[352421811,1739093444245,-500.0,0.00010676,2]
[352421812,1739093444254,-500.0,0.00010676,2]
[352421813,1739093444263,-500.0,0.00010676,2]
[352421814,1739093444272,-500.0,0.00010676,2]
[352421815,1739093444282,-546.25,0.00010676,2]
[352421816,1739093444292,-500.0,0.00010676,2]
[352421817,1739093444301,-500.0,0.00010676,2]
[352421818,1739093444310,-903.92,0.00010676,2]
[352421819,1739093444319,-826.73,0.00010676,2]
[352421820,1739093444328,-500.0,0.00010676,2]
[352421821,1739093444338,-500.0,0.00010676,2]
[352421822,1739093444347,-500.0,0.00010676,2]
[352421823,1739093444361,-500.0,0.00010676,2]
[352421824,1739093444379,-577.09,0.00010676,2]
[352421825,1739093444391,-500.0,0.00010676,2]
[352421826,1739093444400,-500.0,0.00010676,2]
[352421827,1739093444409,-898.01,0.00010676,2]
[352421828,1739093444418,-336.79,0.00010676,2]
[352421829,1739093444427,-500.0,0.00010676,2]
[352421830,1739093444437,-500.0,0.00010676,2]
[352421831,1739093444446,-500.0,0.00010676,2]
[352421832,1739093444455,-500.0,0.00010676,2]
[352421833,1739093444463,-617.53,0.00010676,2]
[352421834,1739093444472,-500.0,0.00010676,2]
[352421835,1739093444482,-500.0,0.00010676,2]
[352421836,1739093444492,-300.56,0.00010676,2]
[352421837,1739093444502,-563.32,0.00010676,2]
[352421838,1739093444511,-500.0,0.00010676,2]
[352421839,1739093444520,-500.0,0.00010676,2]
[352421840,1739093444529,-500.0,0.00010676,2]
[352421841,1739093444538,-500.0,0.00010676,2]
[352421842,1739093444547,-500.0,0.00010676,2]
[352421843,1739093444556,-550.73,0.00010676,2]
[352421844,1739093444566,-500.0,0.00010676,2]
[352421845,1739093444575,-500.0,0.00010676,2]
[352421846,1739093444584,-500.0,0.00010676,2]
[352421847,1739093444593,-500.0,0.00010676,2]
[352421848,1739093444602,-500.0,0.00010676,2]
[352421849,1739093444611,-500.0,0.00010676,2]
[352421850,1739093444620,-500.0,0.00010676,2]
[352421851,1739093444629,-500.0,0.00010676,2]
[352421852,1739093444638,-426.29406943,0.00010676,2]
[352421853,1739093444647,-500.0,0.00010676,2]
[352421854,1739093444656,-616.48,0.00010676,2]
[352421855,1739093444665,-871.06,0.00010676,2]
[352421856,1739093444674,-500.0,0.00010676,2]
[352421857,1739093444684,-500.0,0.00010676,2]
[352421858,1739093444693,-500.0,0.00010676,2]
[352421859,1739093444702,-500.0,0.00010676,2]
[352421860,1739093444712,-500.0,0.00010676,2]
[352421861,1739093444721,-500.0,0.00010676,2]
[352421862,1739093444731,-500.0,0.00010676,2]
[352421863,1739093444740,-851.92,0.00010676,2]
[352421864,1739093444749,-484.7,0.00010676,2]
[352421865,1739093444758,-620.63,0.00010676,2]
[352421866,1739093444767,-500.0,0.00010676,2]
[352421867,1739093444776,-500.0,0.00010676,2]
[352421868,1739093444785,-202.88,0.00010676,2]
[352421869,1739093444795,-906.54,0.00010676,2]
[352421870,1739093444804,-527.5,0.00010676,2]
[352421871,1739093444813,-616.79,0.00010676,2]
[352421872,1739093444822,-500.0,0.00010676,2]
[352421873,1739093444831,-1351.22,0.00010676,2]
[352421874,1739093444840,-793.34,0.00010676,2]
[352421875,1739093444850,-500.0,0.00010676,2]
[352421876,1739093444859,-563.5,0.00010676,2]
[352421877,1739093444869,-500.0,0.00010676,2]
[352421878,1739093444878,-500.0,0.00010676,2]
[352421879,1739093444888,-500.0,0.00010676,2]
[352421880,1739093444898,-925.01,0.00010676,2]
[352421881,1739093444909,-500.0,0.00010676,2]
[352421882,1739093444918,-500.0,0.00010676,2]
[352421883,1739093444928,-500.0,0.00010676,2]
[352421884,1739093444937,-500.0,0.00010676,2]
[352421885,1739093444946,-439.85418764,0.00010676,2]
[352421886,1739093444955,-1614.31,0.00010676,2]
[352421887,1739093444965,-500.0,0.00010676,2]
[352421888,1739093444975,-1427.42,0.00010676,2]
[352421889,1739093444984,-1728.39,0.00010676,2]
[352421890,1739093444994,-500.0,0.00010676,2]
[352421891,1739093445003,-500.0,0.00010676,2]
[352421892,1739093445012,-1702.8,0.00010676,2]
[352421893,1739093445021,-500.0,0.00010676,2]
[352421894,1739093445030,-610.08,0.00010676,2]
[352421895,1739093445040,-500.0,0.00010676,2]
[352421896,1739093445049,-2941.1,0.00010676,2]
[352421897,1739093445059,-500.0,0.00010676,2]
[352421898,1739093445069,-621.84,0.00010676,2]
[352421899,1739093445079,-500.0,0.00010676,2]
[352421900,1739093445088,-1381.55,0.00010676,2]
[352421901,1739093445097,-500.0,0.00010676,2]
[352421902,1739093445107,-500.0,0.00010676,2]
[352421903,1739093445121,-500.0,0.00010676,2]
[352421904,1739093445130,-1411.04,0.00010676,2]
[352421905,1739093445139,-500.0,0.00010676,2]
[352421906,1739093445149,-729.26,0.00010676,2]
[352421907,1739093445158,-500.0,0.00010676,2]
[352421908,1739093445167,-1399.99,0.00010676,2]
[352421909,1739093445176,-596.91,0.00010676,2]
[352421910,1739093445185,-500.0,0.00010676,2]
[352421911,1739093445196,-500.0,0.00010676,2]
[352421912,1739093445207,-1974.4,0.00010676,2]
[352421913,1739093445217,-500.0,0.00010676,2]
[352421914,1739093445228,-1138.28,0.00010676,2]
[352421915,1739093445238,-736.97,0.00010676,2]
[352421916,1739093445248,-1606.06,0.00010676,2]
[352421917,1739093445258,-500.0,0.00010676,2]
[352421918,1739093445268,-500.0,0.00010676,2]
[352421919,1739093445278,-500.0,0.00010676,2]
[352421920,1739093445289,-1655.64,0.00010676,2]
[352421921,1739093445300,-500.0,0.00010676,2]
[352421922,1739093445309,-904.17,0.00010676,2]
[352421923,1739093445318,-1000.0,0.00010676,2]
[352421924,1739093445328,-500.0,0.00010676,2]
[352421925,1739093445338,-500.0,0.00010676,2]
[352421926,1739093445349,-500.0,0.00010676,2]
[352421927,1739093445359,-1467.63,0.00010676,2]
[352421928,1739093445369,-1058.84,0.00010676,2]
[352421929,1739093445379,-500.0,0.00010676,2]
[352421930,1739093445390,-500.0,0.00010676,2]
[352421931,1739093445400,-1247.5,0.00010676,2]
[352421932,1739093445410,-500.0,0.00010676,2]
[352421933,1739093445418,-500.0,0.00010676,2]
[352421934,1739093445427,-554.62,0.00010676,2]
[352421935,1739093445437,-437.0,0.00010676,2]
[352421936,1739093445445,-500.0,0.00010676,2]
[352421937,1739093445455,-500.0,0.00010676,2]
[352421938,1739093445464,-500.0,0.00010677,2]
[352421939,1739093445474,-500.0,0.00010677,2]
[352421940,1739093445483,-500.0,0.00010678,2]
[352421941,1739093445492,-500.0,0.00010678,2]
[352421942,1739093445501,-500.0,0.00010678,2]
[352421943,1739093445510,-500.0,0.00010678,2]
[352421944,1739093445519,-500.0,0.00010678,2]
[352421946,1739093445529,-500.0,0.00010678,2]
[352421948,1739093445538,-500.0,0.00010678,2]
[352421950,1739093445547,-196.8,0.00010678,2]
[352421951,1739093445556,-500.0,0.00010678,2]
[352421952,1739093445565,-500.0,0.00010678,2]
[352421953,1739093445575,-500.0,0.00010678,2]
[352421955,1739093445584,-151.0,0.00010678,2]
[352421957,1739093445593,-500.0,0.00010678,2]
[352421959,1739093445602,-151.0,0.00010678,2]
[352421961,1739093445611,-500.0,0.00010678,2]
[352421963,1739093445619,-751.66,0.00010678,2]
[352421965,1739093445628,-545.98,0.00010678,2]
[352421967,1739093445637,-793.75,0.00010678,2]
[352421969,1739093445646,-912.09,0.00010678,2]
[352421971,1739093445655,-500.0,0.00010678,2]
[352421973,1739093445664,-552.76,0.00010678,2]
[352421975,1739093445674,-573.7,0.00010678,2]
[352421977,1739093445683,-500.0,0.00010678,2]
[352421979,1739093445692,-514.55,0.00010678,2]
[352421981,1739093445701,-500.0,0.00010678,2]
[352421983,1739093445710,-650.03,0.00010678,2]
[352421984,1739093445720,-500.0,0.00010679,2]
[352421985,1739093445730,-500.0,0.00010679,2]
[352421986,1739093445739,-634.94,0.00010679,2]
[352421987,1739093445749,-500.0,0.00010679,2]
[352421988,1739093445758,-500.0,0.00010679,2]
[352421989,1739093445768,-794.88,0.00010679,2]
[352421990,1739093445778,-1000.0,0.000107,2]
[352421991,1739093445788,-1013.0,0.000107,2]
[352421992,1739093445798,-431.7357272,0.00010761,2]
[352421993,1739093445808,-152.04,0.00010768,2]
[352421994,1739093445818,-200.0,0.000108,2]
[352421995,1739093445828,-200.0,0.000108,2]
[352421996,1739093445837,-200.0,0.000108,3]
[352421997,1739093445846,-200.0,0.000108,3]
[352421998,1739093445856,-623.94,0.00010812,2]
[352421999,1739093445865,-500.0,0.00010812,2]
[352422000,1739093445877,-500.0,0.00010812,2]
[352422001,1739093445886,-500.0,0.00010812,2]
[352422002,1739093445896,-669.84,0.00010812,2]
[352422003,1739093445905,-748.14,0.00010812,2]
[352422004,1739093445915,-500.0,0.00010812,2]
[352422005,1739093445924,-500.0,0.00010812,2]
[352422006,1739093445934,-500.0,0.00010812,2]
[352422007,1739093445943,-500.0,0.00010812,2]
[352422008,1739093445953,-500.0,0.00010812,2]
[352422009,1739093445962,-500.0,0.00010812,2]
[352422010,1739093446078,-762.76,0.00010812,2]
[352422011,1739093446087,-500.0,0.00010812,2]
[352422012,1739093446097,-500.0,0.00010812,2]
[352422013,1739093446107,-576.71,0.00010812,2]
[352422014,1739093446121,-500.0,0.00010812,2]
[352422015,1739093446130,-275.16,0.00010812,2]
[352422016,1739093446140,-500.0,0.00010812,2]
[352422017,1739093446149,-500.0,0.00010812,2]
[352422018,1739093446159,-673.22,0.00010812,2]
[352422019,1739093446167,-238.063774,0.00010812,2]
[352422020,1739093446177,-582.96,0.00010812,2]
[352422021,1739093446187,-500.0,0.00010812,2]
[352422022,1739093446196,-500.0,0.00010812,2]
[352422023,1739093446206,-764.53,0.00010812,2]
[352422024,1739093446215,-500.0,0.00010812,2]
[352422025,1739093446224,-500.0,0.00010812,2]
[352422026,1739093446233,-179.542554,0.00010812,2]
[352422027,1739093446243,-598.52,0.00010812,2]
[352422028,1739093446251,-790.4,0.00010812,2]
[352422029,1739093446261,-500.0,0.00010812,2]
[352422030,1739093446270,-500.0,0.00010812,2]
[352422031,1739093446280,-799.74,0.00010812,2]
[352422032,1739093446289,-560.95,0.00010812,2]
[352422033,1739093446299,-500.0,0.00010812,2]
[352422034,1739093446309,-700.59,0.00010812,2]
[352422035,1739093446318,-500.0,0.00010812,2]
[352422036,1739093446328,-488.88,0.00010812,2]
[352422037,1739093446337,-1061.78,0.00010812,2]
[352422038,1739093446346,-884.41,0.00010812,2]
[352422039,1739093446357,-549.77,0.00010812,2]
[352422040,1739093446366,-500.0,0.00010812,2]
[352422041,1739093446377,-769.49,0.00010812,2]
[352422042,1739093446386,-619.63,0.00010812,2]
[352422043,1739093446395,-693.66,0.00010812,2]
[352422044,1739093446406,-629.58,0.00010812,2]
[352422045,1739093446415,-823.3,0.00010812,2]
[352422046,1739093446424,-821.47,0.00010812,2]
[352422047,1739093446435,-500.0,0.00010812,2]
[352422048,1739093446444,-708.97,0.00010812,2]
[352422049,1739093446454,-757.96,0.00010812,2]
[352422050,1739093446463,-1087.29,0.00010812,2]
[352422051,1739093446473,-500.0,0.00010812,2]
[352422052,1739093446482,-1753.75,0.00010812,2]
[352422053,1739093446491,-1730.61,0.00010812,2]
[352422054,1739093446502,-500.0,0.00010812,2]
[352422055,1739093446512,-848.88,0.00010812,2]
[352422056,1739093446521,-1029.87,0.00010812,2]
[352422057,1739093446531,-547.81,0.00010812,2]
[352422058,1739093446540,-764.93,0.00010812,2]
[352422059,1739093446550,-783.68,0.00010812,2]
[352422060,1739093446559,-1197.8,0.00010812,2]
[352422061,1739093446569,-633.47,0.00010812,2]
[352422062,1739093446578,-1331.84,0.00010812,2]
[352422063,1739093446587,-585.06,0.00010812,2]
[352422064,1739093446596,-473.38128657,0.00010812,2]
[352422065,1739093446605,-918.48,0.00010812,2]
[352422066,1739093446614,-797.81,0.00010812,2]
[352422067,1739093446623,-500.0,0.00010812,2]
[352422068,1739093446633,-1135.51,0.00010812,2]
[352422069,1739093446642,-500.0,0.00010812,2]
[352422070,1739093446651,-1781.88,0.00010812,2]
[352422071,1739093446660,-1130.28,0.00010812,2]
[352422072,1739093446670,-500.0,0.00010812,2]
[352422073,1739093446679,-2486.97,0.00010812,2]
[352422074,1739093446688,-1439.82,0.00010812,2]
[352422075,1739093446698,-1176.89,0.00010812,2]
[352422076,1739093446708,-1603.9,0.00010812,2]
[352422077,1739093446718,-1308.98,0.00010812,2]
[352422078,1739093446727,-1740.19,0.00010812,2]
[352422079,1739093446736,-809.09,0.00010812,2]
[352422080,1739093446746,-540.18,0.00010812,2]
[352422081,1739093446755,-503.14,0.00010812,2]
[352422082,1739093446765,-3818.74,0.00010812,2]
[352422083,1739093446774,-744.75,0.00010812,2]
[352422084,1739093446784,-950.81,0.00010812,2]
[352422085,1739093446794,-500.0,0.00010812,2]
[352422086,1739093446803,-500.0,0.00010812,2]
[352422087,1739093446813,-1366.19,0.00010812,2]
[352422088,1739093446823,-899.22,0.00010812,2]
[352422089,1739093446832,-1133.86,0.00010812,2]
[352422090,1739093446841,-675.02,0.00010812,2]
[352422091,1739093446851,-622.79,0.00010812,2]
[352422092,1739093446860,-500.0,0.00010812,2]
[352422093,1739093446870,-666.01,0.00010812,2]
[352422094,1739093446880,-1003.73,0.00010812,2]
[352422095,1739093446890,-1173.28,0.00010812,2]
[352422096,1739093446900,-500.0,0.00010812,2]
[352422097,1739093446910,-2140.7,0.00010812,2]
[352422098,1739093446920,-804.39,0.00010812,2]
[352422099,1739093446929,-699.86,0.00010812,2]
[352422100,1739093446940,-1038.03,0.00010812,2]
[352422101,1739093446949,-1534.57,0.00010812,2]
[352422102,1739093446958,-1789.5,0.00010812,2]
[352422103,1739093446968,-739.77,0.00010812,2]
[352422104,1739093446977,-2875.24,0.00010812,2]
[352422105,1739093446986,-1312.87,0.00010812,2]
[352422106,1739093446996,-1362.18,0.00010812,2]
[352422107,1739093447004,-1008.52,0.00010812,2]
[352422108,1739093447013,-500.0,0.00010812,2]
[352422109,1739093447023,-1651.8,0.00010812,2]
[352422110,1739093447032,-500.0,0.00010812,2]
[352422111,1739093447042,-532.11,0.00010812,2]
[352422112,1739093447052,-1345.09,0.00010812,2]
[352422113,1739093447062,-1375.84,0.00010812,2]
[352422114,1739093447071,-1772.27,0.00010812,2]
[352422115,1739093447081,-1273.43,0.00010812,2]
[352422116,1739093447091,-500.0,0.00010812,2]
[352422117,1739093447101,-906.11,0.00010812,2]
[352422118,1739093447113,-500.0,0.00010812,2]
[352422119,1739093447123,-1298.96,0.00010812,2]
[352422120,1739093447132,-1374.21,0.00010812,2]
[352422121,1739093447142,-822.1,0.00010812,2]
[352422122,1739093447152,-578.75,0.00010812,2]
[352422123,1739093447162,-500.0,0.00010812,2]
[352422124,1739093447171,-1313.23,0.00010812,2]
[352422125,1739093447180,-544.38,0.00010812,2]
[352422126,1739093447191,-1324.54,0.00010812,2]
[352422127,1739093447201,-500.0,0.00010812,2]
[352422128,1739093447211,-1005.87,0.00010812,2]
[352422129,1739093447220,-1381.83,0.00010812,2]
[352422130,1739093447229,-1250.43,0.00010812,2]
[352422131,1739093447239,-514.48,0.00010812,2]
[352422132,1739093447248,-500.0,0.00010812,2]
[352422133,1739093447258,-963.73,0.00010812,2]
[352422134,1739093447267,-911.74,0.00010812,2]
[352422135,1739093447276,-1092.4,0.00010812,2]
[352422136,1739093447285,-500.0,0.00010812,2]
[352422137,1739093447295,-940.48,0.00010812,2]
[352422138,1739093447305,-500.0,0.00010812,2]
[352422139,1739093447314,-953.19,0.00010812,2]
[352422140,1739093447323,-500.0,0.00010812,2]
[352422141,1739093447332,-500.0,0.00010812,2]
[352422142,1739093447342,-917.38,0.00010812,2]
[352422143,1739093447354,-540.05,0.00010812,2]
[352422144,1739093447364,-872.02,0.00010812,2]
[352422145,1739093447373,-741.57,0.00010812,2]
[352422146,1739093447383,-500.0,0.00010812,2]
[352422147,1739093447392,-995.48,0.00010812,2]
[352422148,1739093447401,-500.0,0.00010812,2]
[352422149,1739093447411,-1374.19,0.00010812,2]
[352422150,1739093447420,-944.21,0.00010812,2]
[352422151,1739093447430,-179.69715246,0.00010812,2]
[352422152,1739093447439,-1806.32,0.00010812,2]
[352422153,1739093447448,-500.0,0.00010812,2]
[352422154,1739093447457,-500.0,0.00010812,2]
[352422155,1739093447466,-945.42,0.00010812,2]
[352422156,1739093447475,-176.58785131,0.00010812,2]
[352422157,1739093447484,-2707.0,0.00010813,2]
[352422158,1739093447494,-500.0,0.00010813,2]
[352422159,1739093447503,-500.0,0.00010813,2]
[352422160,1739093447512,-500.0,0.00010813,2]
[352422161,1739093447521,-361.3,0.00010813,2]
[352422162,1739093447530,-500.0,0.00010813,2]
[352422163,1739093447540,-500.0,0.00010813,2]
[352422164,1739093447550,-619.54,0.00010813,2]
[352422165,1739093447559,-500.0,0.00010813,2]
[352422166,1739093447568,-500.0,0.00010813,2]
[352422167,1739093447577,-206.23,0.00010813,2]
[352422168,1739093447587,-500.0,0.00010813,2]
[352422169,1739093447596,-500.0,0.00010813,2]
[352422170,1739093447606,-500.0,0.00010813,2]
[352422171,1739093447615,-500.0,0.00010813,2]
[352422172,1739093447625,-500.0,0.00010813,2]